bitfinex-derivatives/quotes_BTCF0:USTF0_20251119
["timestamp","ask_amount","ask_price","bid_price","bid_amount"]
[1763525683843,0.00016339,91805.0,91804.0,0.1532988]
[1763525684236,0.0885512,91805.0,91804.0,0.1532988]
[1763525685336,0.0885512,91805.0,91804.0,0.04429]
[1763525689548,0.1344212,91805.0,91804.0,0.04429]
[1763525693258,0.1112712,91805.0,91804.0,0.04429]
[1763525693548,0.0885512,91805.0,91804.0,0.04429]
[1763525694857,0.00016339,91805.0,91804.0,0.04429]
[1763525695549,0.04603339,91805.0,91804.0,0.04429]
[1763525695748,0.1343689,91805.0,91804.0,0.30721]
[1763525695948,0.04603339,91805.0,91804.0,0.30721]
[1763525696859,0.1548823,91801.0,91800.0,0.03460267]
[1763525697048,0.1548823,91801.0,91800.0,0.02195267]
[1763525697954,0.11085358,91805.0,91804.0,0.04374]
[1763525698251,0.04424339,91805.0,91804.0,0.04374]
[1763525698461,0.13112303,91805.0,91804.0,0.04374]
[1763525699657,0.08704303,91805.0,91804.0,0.04374]
[1763525700057,0.13112303,91805.0,91804.0,0.04374]
[1763525700559,0.08704303,91805.0,91804.0,0.04374]
[1763525700961,0.13112303,91805.0,91804.0,0.04374]
[1763525701255,0.24013063,91805.0,91804.0,0.04374]
[1763525702054,0.08704303,91805.0,91804.0,0.04374]
[1763525702256,0.05874333,91824.0,91804.0,0.04374]
[1763525702257,0.04408,91824.0,91823.0,0.04374]
[1763525702453,0.3608,91826.0,91825.0,0.04374]
[1763525702766,0.3608,91826.0,91824.0,0.122215]
[1763525702767,0.3608,91833.0,91832.0,0.1659455]
[1763525703157,0.3837,91845.0,91844.0,0.1527013]
[1763525703457,0.3837,91845.0,91844.0,0.04374]
[1763525703458,0.40488,91845.0,91844.0,0.04374]
[1763525703758,0.40488,91845.0,91840.0,0.00073267]
[1763525703759,0.04408,91841.0,91840.0,0.00073267]
[1763525704755,0.1089617,91844.0,91823.0,0.00016339]
[1763525704756,0.04408,91824.0,91823.0,0.00016339]
[1763525704950,0.40488,91824.0,91823.0,0.00016339]
[1763525705162,0.40488,91824.0,91823.0,0.04390339]
[1763525705356,0.3608,91824.0,91823.0,0.04390339]
[1763525705963,0.40488,91824.0,91823.0,0.04390339]
[1763525706351,0.40488,91824.0,91823.0,0.00016339]
[1763525707254,0.3608,91824.0,91823.0,0.04390339]
[1763525707761,0.00016339,91833.0,91832.0,0.1527155]
[1763525708463,0.00016339,91833.0,91832.0,0.04374]
[1763525709160,0.00116339,91833.0,91832.0,0.1527155]
[1763525710064,0.00216339,91833.0,91832.0,0.04374]
[1763525710464,0.00116339,91833.0,91832.0,0.04374]
[1763525710665,0.00216339,91833.0,91832.0,0.04374]
[1763525710859,0.04408,91831.0,91830.0,0.00073267]
[1763525711364,0.153065,91824.0,91823.0,0.00016339]
[1763525711564,0.153065,91824.0,91823.0,0.02252339]
[1763525711764,0.153065,91824.0,91823.0,0.00016339]
[1763525711960,0.153065,91824.0,91823.0,0.02252339]
[1763525712668,0.153065,91824.0,91823.0,0.00016339]
[1763525712973,0.04408,91824.0,91823.0,0.04390339]
[1763525713164,0.15321809,91833.0,91832.0,0.04374]
[1763525713368,0.13203809,91833.0,91832.0,0.04374]
[1763525713970,0.02306339,91833.0,91832.0,0.04374]
[1763525714168,0.00016339,91833.0,91832.0,0.1527155]
[1763525714562,0.00116339,91833.0,91832.0,0.1527155]
[1763525714764,0.08859345,91845.0,91844.0,0.1527013]
[1763525714964,0.0002722,91846.0,91845.0,0.04374]
[1763525716973,0.0012722,91846.0,91845.0,0.04374]
[1763525717164,0.0022722,91846.0,91845.0,0.04374]
[1763525717664,0.0012722,91846.0,91845.0,0.04374]
[1763525717864,0.0022722,91846.0,91845.0,0.04374]
[1763525719069,0.0012722,91846.0,91845.0,0.04374]
[1763525719272,0.0002722,91846.0,91845.0,0.04374]
[1763525719572,0.0463522,91846.0,91845.0,0.04374]
[1763525719767,0.0022722,91846.0,91845.0,0.04374]
[1763525719966,0.0012722,91846.0,91845.0,0.04374]
[1763525720160,0.0022722,91846.0,91845.0,0.04374]
[1763525720565,0.0012722,91846.0,91845.0,0.04374]
[1763525720764,0.0022722,91846.0,91845.0,0.04374]
[1763525720971,0.1112311,91846.0,91845.0,0.04374]
[1763525722169,0.1102311,91846.0,91845.0,0.04374]
[1763525722372,0.1341311,91846.0,91845.0,0.04374]
[1763525722570,0.1554611,91846.0,91845.0,0.04374]
[1763525722768,0.1544611,91846.0,91845.0,0.04374]
[1763525722960,0.1554611,91846.0,91845.0,0.04374]
[1763525723969,0.1533047,91841.0,91840.0,0.03654267]
[1763525724169,0.5141047,91841.0,91840.0,0.05955267]
[1763525724370,0.1533166,91831.0,91830.0,0.05882]
[1763525724561,0.1533166,91831.0,91830.0,0.00073267]
[1763525724870,0.40514,91841.0,91840.0,0.04559]
[1763525725175,0.40514,91841.0,91840.0,0.04632267]
[1763525725366,0.40514,91841.0,91840.0,0.00073267]
[1763525725567,0.1533189,91829.0,91828.0,0.40639]
[1763525726468,0.1533189,91829.0,91828.0,0.04559]
[1763525734967,0.02301,91829.0,91828.0,0.04559]
[1763525735162,0.36299803,91830.0,91829.0,0.152599]
[1763525735462,0.40563803,91830.0,91829.0,0.04362]
[1763525737674,0.36299803,91830.0,91829.0,0.04362]
[1763525738065,0.00219803,91830.0,91829.0,0.04362]
[1763525738274,0.04483803,91830.0,91829.0,0.04362]
[1763525738576,0.02332803,91830.0,91829.0,0.04362]
[1763525738879,0.00219803,91830.0,91829.0,0.04362]
[1763525741476,0.02332803,91830.0,91829.0,0.04362]
[1763525742578,0.00219803,91830.0,91829.0,0.04362]
[1763525742979,0.02332803,91830.0,91829.0,0.04362]
[1763525743278,0.38193,91841.0,91840.0,0.05651]
[1763525743476,0.5124049,91841.0,91840.0,0.05724267]
[1763525744382,0.3608,91841.0,91840.0,0.16620867]
[1763525744583,0.3618,91841.0,91840.0,0.16620867]
[1763525744787,0.3618,91841.0,91840.0,0.05724267]
[1763525745086,0.3628,91841.0,91840.0,0.05724267]
[1763525745486,0.3628,91841.0,91840.0,0.16620867]
[1763525746184,0.38393,91841.0,91840.0,0.16620867]
[1763525746387,0.002,91841.0,91840.0,0.42904867]
[1763525746582,0.00047597,91841.0,91840.0,0.78984867]
[1763525746882,0.0002722,91846.0,91845.0,0.1525801]
[1763525747086,0.00016339,91855.0,91854.0,0.1525694]
[1763525747585,0.22680447,91875.0,91865.0,0.1525564]
[1763525747586,0.3608,91866.0,91865.0,0.1525564]
[1763525747775,0.3608,91866.0,91865.0,0.04362]
[1763525747970,0.38193,91866.0,91865.0,0.04362]
[1763525748581,0.40344,91866.0,91865.0,0.04362]
[1763525748784,0.40644,91866.0,91865.0,0.04362]
[1763525748985,0.45156292,91866.0,91865.0,0.04362]
[1763525749376,0.003,91866.0,91865.0,0.40442]
[1763525749886,0.003,91866.0,91865.0,0.43378287]
[1763525750385,0.002,91866.0,91865.0,0.40442]
[1763525750776,0.10257111,91875.0,91874.0,0.04362]
[1763525752090,0.04264,91871.0,91870.0,0.02214267]
[1763525752292,0.04264,91871.0,91870.0,0.30715267]
[1763525752986,0.04264,91871.0,91870.0,0.04435267]
[1763525753188,0.04264,91871.0,91870.0,0.30715267]
[1763525753485,0.02113,91871.0,91870.0,0.30715267]
[1763525754089,0.08106111,91875.0,91874.0,0.04362]
[1763525754294,0.16744767,91875.0,91874.0,0.04362]
[1763525754502,0.10257111,91875.0,91874.0,0.04362]
[1763525754689,0.1525693,91871.0,91870.0,0.30715267]
[1763525754987,0.1525693,91871.0,91870.0,0.00073267]
[1763525755384,0.1525693,91871.0,91870.0,0.04435267]
[1763525755789,0.04364,91871.0,91870.0,0.04435267]
[1763525756592,0.04264,91871.0,91870.0,0.04435267]
[1763525756981,0.04364,91871.0,91870.0,0.04435267]
[1763525757381,0.04464,91871.0,91870.0,0.04435267]
[1763525757581,0.04364,91871.0,91870.0,0.04435267]
[1763525758091,0.17101126,91875.0,91874.0,0.0429]
[1763525758485,0.19268126,91875.0,91874.0,0.0429]
[1763525759690,0.19368126,91875.0,91874.0,0.0429]
[1763525760091,0.19468126,91875.0,91874.0,0.0429]
[1763525760288,0.19368126,91875.0,91874.0,0.0429]
[1763525760586,0.1532593,91871.0,91870.0,0.00073267]
[1763525760791,0.1532593,91871.0,91870.0,0.02225267]
[1763525761289,0.1532593,91871.0,91870.0,0.00073267]
[1763525761483,0.1532652,91866.0,91865.0,0.02168329]
[1763525761689,0.40513,91866.0,91865.0,0.04306329]
[1763525761887,0.3608,91866.0,91865.0,0.15199969]
[1763525762085,0.3608,91866.0,91865.0,0.04306329]
[1763525763189,0.38346,91866.0,91865.0,0.04306329]
[1763525763400,0.00219803,91870.0,91869.0,0.1518316]
[1763525763693,0.14835126,91875.0,91870.0,0.04363267]
[1763525763694,0.001,91871.0,91870.0,0.04363267]
[1763525764391,0.1532593,91871.0,91870.0,0.02225267]
[1763525764785,0.1542593,91871.0,91870.0,0.00073267]
[1763525766290,0.1552593,91871.0,91870.0,0.02225267]
[1763525766489,0.1552593,91871.0,91870.0,0.00073267]
[1763525767092,0.1552593,91871.0,91870.0,0.04363267]
[1763525767488,0.1552593,91871.0,91870.0,0.00073267]
[1763525769905,0.04633,91871.0,91870.0,0.02225267]
[1763525770195,0.04633,91871.0,91870.0,0.04363267]
[1763525771400,0.04633,91871.0,91870.0,0.00073267]
[1763525771602,0.04633,91871.0,91870.0,0.02225267]
[1763525772797,0.04633,91871.0,91870.0,0.04363267]
[1763525772998,0.04633,91871.0,91870.0,0.02225267]
[1763525773195,0.04633,91871.0,91870.0,0.04363267]
[1763525773896,0.002,91871.0,91870.0,0.04363267]
[1763525774197,0.05993111,91875.0,91874.0,0.1518257]
[1763525774401,0.05993111,91875.0,91874.0,0.19094854]
[1763525775200,0.05993111,91875.0,91874.0,0.1518257]
[1763525775688,0.06193111,91875.0,91874.0,0.1518257]
[1763525776794,0.06093111,91875.0,91874.0,0.1518257]
[1763525777011,0.05993111,91875.0,91874.0,0.1518257]
[1763525777699,0.05486541,91875.0,91874.0,0.1518257]
[1763525777897,0.3608,91894.0,91885.0,0.1518127]
[1763525778098,0.3608,91894.0,91885.0,0.18118555]
[1763525778300,0.3608,91894.0,91885.0,0.1518127]
[1763525779099,0.08812038,91893.0,91885.0,0.1518127]
[1763525779704,0.3608,91894.0,91885.0,0.1518127]
[1763525782199,0.00010836,91895.0,91885.0,0.1909765]
[1763525782504,0.13328556,91906.0,91896.0,0.01365]
[1763525782703,0.154118,91906.0,91905.0,0.04482]
[1763525782905,0.1541237,91901.0,91900.0,0.00073267]
[1763525783109,0.1541237,91901.0,91880.0,0.01284]
[1763525783110,0.1541273,91898.0,91897.0,0.26268]
[1763525783493,0.1541273,91898.0,91883.0,0.3608]
[1763525783494,0.04523,91885.0,91884.0,0.04486]
[1763525783710,0.04523,91885.0,91884.0,0.30754]
[1763525784106,0.04523,91885.0,91884.0,0.04486]
[1763525784409,0.04523,91885.0,91884.0,4e-05]
[1763525785002,0.04523,91885.0,91884.0,0.04486]
[1763525785398,0.04523,91885.0,91884.0,0.0229]
[1763525785806,0.04523,91885.0,91884.0,0.04486]
[1763525786415,0.38283,91889.0,91888.0,0.04482]
[1763525786603,0.38283,91889.0,91888.0,0.05847]
[1763525786799,0.3608,91889.0,91888.0,0.05847]
[1763525787002,0.3608,91889.0,91888.0,0.1673791]
[1763525787209,0.40603,91889.0,91888.0,0.05847]
[1763525787410,0.40603,91889.0,91888.0,0.04482]
[1763525789415,0.5149379,91889.0,91888.0,0.04482]
[1763525789611,0.40603,91889.0,91888.0,0.04482]
[1763525789808,0.40603,91889.0,91888.0,0.05793]
[1763525790209,0.40603,91889.0,91888.0,0.04482]
[1763525791012,0.40603,91889.0,91888.0,0.1537291]
[1763525791213,0.40603,91889.0,91888.0,0.04482]
[1763525791918,0.40703,91889.0,91888.0,0.04482]
[1763525792415,0.40703,91889.0,91888.0,0.1537291]
[1763525792714,0.38383,91889.0,91888.0,0.05793]
[1763525792922,0.40537,91889.0,91888.0,0.02286]
[1763525793311,0.40537,91889.0,91888.0,0.0439]
[1763525793519,0.3618,91889.0,91888.0,0.05701]
[1763525793708,0.001,91889.0,91888.0,0.05701]
[1763525793908,0.04366,91889.0,91888.0,0.0439]
[1763525795010,0.04266,91889.0,91888.0,0.07322409]
[1763525795406,0.04266,91887.0,91886.0,0.02932409]
[1763525795606,0.04266,91885.0,91884.0,0.02936776]
[1763525795807,0.04266,91885.0,91884.0,0.30499]
[1763525796517,0.04266,91885.0,91884.0,4e-05]
[1763525796719,0.04266,91876.0,91875.0,0.02949105]
[1763525796912,0.40346,91876.0,91875.0,0.00016329]
[1763525797510,0.04266,91867.0,91866.0,0.02932776]
[1763525797820,0.40346,91867.0,91866.0,0.02932776]
[1763525798211,0.04266,91864.0,91863.0,0.19032028]
[1763525798410,0.04266,91864.0,91863.0,0.08138258]
[1763525798411,0.05665,91864.0,91863.0,0.08138258]
[1763525799215,0.01649968,91864.0,91863.0,0.04227]
[1763525799410,0.03761968,91864.0,91863.0,0.04227]
[1763525800716,0.3608,91866.0,91865.0,0.04227]
[1763525800917,0.00016329,91873.0,91872.0,0.1643081]
[1763525801224,0.00016329,91873.0,91872.0,0.05538]
[1763525801225,0.02128329,91873.0,91872.0,0.05538]
[1763525801427,0.04282329,91873.0,91872.0,0.05538]
[1763525801609,0.04282329,91873.0,91872.0,0.02123]
[1763525801815,0.04266,91871.0,91870.0,0.00073267]
[1763525802314,0.04266,91871.0,91870.0,0.02196267]
[1763525802915,0.04266,91871.0,91870.0,0.05130857]
[1763525803215,0.04266,91871.0,91870.0,0.02196267]
[1763525803411,0.04266,91871.0,91870.0,0.04300267]
[1763525803626,0.02128329,91873.0,91872.0,0.05538]
[1763525803821,0.04282329,91873.0,91872.0,0.05538]
[1763525804009,0.04282329,91873.0,91872.0,0.04227]
[1763525804520,0.04282329,91873.0,91864.0,0.02935674]
[1763525804521,0.1515952,91866.0,91864.0,0.02935674]
[1763525804727,0.1515976,91864.0,91863.0,0.02935674]
[1763525805218,0.1515976,91864.0,91862.0,0.02935674]
[1763525805424,0.04266,91863.0,91862.0,0.02935674]
[1763525805610,0.04266,91863.0,91862.0,0.05058674]
[1763525806216,0.04266,91863.0,91862.0,0.02123]
[1763525806527,0.04266,91863.0,91862.0,0.05058674]
[1763525806722,0.04266,91863.0,91862.0,0.07162674]
[1763525807432,0.04266,91863.0,91862.0,0.04227]
[1763525807923,0.1089399,91862.0,91861.0,0.02935674]
[1763525808114,0.1515999,91862.0,91861.0,0.02935674]
[1763525808322,0.04266,91861.0,91860.0,0.05131941]
[1763525808521,0.04266,91861.0,91860.0,0.07235941]
[1763525809527,0.40346,91866.0,91865.0,0.04227]
[1763525809824,0.3608,91866.0,91865.0,0.04227]
[1763525810329,0.5123952,91866.0,91865.0,0.04227]
[1763525810722,0.40346,91866.0,91865.0,0.04227]
[1763525812229,0.3608,91866.0,91865.0,0.30495]
[1763525812733,0.38192,91866.0,91865.0,0.30495]
[1763525813235,0.3608,91866.0,91865.0,0.30495]
[1763525817734,0.48697437,91866.0,91865.0,0.30495]
[1763525818033,0.1522776,91864.0,91863.0,0.03912967]
[1763525818234,0.1522776,91864.0,91863.0,0.06214967]
[1763525818636,0.04334,91864.0,91863.0,0.08485967]
[1763525819233,0.1522776,91864.0,91863.0,0.04573]
[1763525820030,0.04334,91864.0,91863.0,0.1546687]
[1763525820836,0.33463917,91866.0,91865.0,0.04573]
[1763525821136,0.37797917,91866.0,91865.0,0.04573]
[1763525822237,0.04334,91863.0,91862.0,0.30841]
[1763525822833,0.04334,91863.0,91862.0,0.34753967]
[1763525823534,0.04334,91863.0,91862.0,0.30841]
[1763525824333,0.04334,91863.0,91862.0,0.26268]
[1763525825733,0.04334,91861.0,91860.0,0.02375267]
[1763525826244,0.04334,91861.0,91855.0,0.1089473]
[1763525826245,0.1089827,91826.0,91818.0,6e-08]
[1763525826541,0.1090159,91798.0,91797.0,4e-08]
[1763525826745,0.1090218,91793.0,91792.0,0.01393]
[1763525827040,0.1090408,91777.0,91776.0,0.05966]
[1763525827242,1.01478772,91777.0,91776.0,0.05966]
[1763525827444,1.12382852,91777.0,91776.0,0.16418376]
[1763525827632,0.75170772,91777.0,91776.0,0.18714376]
[1763525827837,1.01478772,91777.0,91776.0,0.18714376]
[1763525828041,1.01478772,91777.0,91776.0,0.29598371]
[1763525828536,1.01478772,91777.0,91776.0,0.16849995]
[1763525828742,1.01478772,91777.0,91776.0,0.05966]
[1763525829136,0.98380436,91777.0,91776.0,0.16849995]
[1763525829343,0.98380436,91777.0,91776.0,0.05966]
[1763525829550,0.98380436,91777.0,91776.0,0.27402371]
[1763525829739,0.35992436,91777.0,91776.0,0.29798371]
[1763525830051,0.62304436,91777.0,91776.0,0.29798371]
[1763525830539,0.98384436,91777.0,91776.0,0.29798371]
[1763525831445,0.98384436,91777.0,91776.0,0.18914376]
[1763525831629,0.98384436,91777.0,91776.0,0.29798371]
[1763525832441,0.98384436,91777.0,91776.0,0.18914376]
[1763525833037,0.98388436,91777.0,91776.0,0.29798371]
[1763525833649,0.98388436,91777.0,91776.0,0.18914376]
[1763525833945,0.72072436,91777.0,91776.0,0.29798371]
[1763525834242,0.26328436,91777.0,91776.0,0.29798371]
[1763525834444,0.00016338,91786.0,91785.0,0.04573]
[1763525834746,0.29311819,91786.0,91785.0,0.17321376]
[1763525834939,0.29311819,91786.0,91785.0,0.28205371]
[1763525835332,0.29311819,91786.0,91785.0,0.21336371]
[1763525835539,0.29311819,91786.0,91785.0,0.10452376]
[1763525835848,0.29311819,91786.0,91785.0,0.10652376]
[1763525836046,0.29311819,91786.0,91785.0,0.21536371]
[1763525836240,0.29311819,91786.0,91785.0,0.10652376]
[1763525836435,0.02991819,91786.0,91785.0,0.10652376]
[1763525836637,0.29311819,91786.0,91785.0,0.10652376]
[1763525836837,0.29311819,91786.0,91785.0,0.21536371]
[1763525837442,0.29311819,91786.0,91785.0,0.0521034]
[1763525837848,0.69311819,91786.0,91785.0,0.0521034]
[1763525838048,0.69311819,91786.0,91785.0,0.16094335]
[1763525838342,0.69311819,91786.0,91785.0,0.0521034]
[1763525838649,0.69311819,91786.0,91785.0,0.002]
[1763525839247,0.69311819,91786.0,91785.0,0.11083995]
[1763525839447,0.02991819,91786.0,91785.0,0.11083995]
[1763525839640,0.29315819,91786.0,91785.0,0.11083995]
[1763525839840,0.29315819,91786.0,91785.0,0.13385995]
[1763525840340,0.29315819,91786.0,91785.0,0.11083995]
[1763525840647,0.29315819,91786.0,91785.0,0.002]
[1763525841048,0.29315819,91786.0,91785.0,0.11083995]
[1763525841252,0.29315819,91786.0,91785.0,0.002]
[1763525841544,0.29315819,91786.0,91785.0,0.11083995]
[1763525841739,0.29315819,91786.0,91785.0,0.002]
[1763525841934,0.29315819,91786.0,91785.0,0.11083995]
[1763525842441,0.02991819,91786.0,91785.0,0.15628995]
[1763525842750,0.29315819,91786.0,91785.0,0.15628995]
[1763525843251,0.29315819,91786.0,91785.0,0.13296995]
[1763525843445,0.29315819,91786.0,91785.0,0.11083995]
[1763525843641,0.29315819,91786.0,91785.0,0.002]
[1763525844041,0.29315819,91786.0,91785.0,0.11083995]
[1763525845740,0.29315819,91786.0,91785.0,0.002]
[1763525845951,0.29315819,91786.0,91785.0,0.11083995]
[1763525846353,0.1090408,91777.0,91776.0,0.01393]
[1763525846553,0.76283561,91777.0,91776.0,0.01393]
[1763525846955,0.76283561,91777.0,91776.0,0.03606]
[1763525847847,0.76283561,91777.0,91776.0,0.03706]
[1763525848154,0.76283561,91777.0,91776.0,0.01493]
[1763525848555,0.76283561,91777.0,91776.0,0.06041]
[1763525849456,0.49959561,91777.0,91753.0,0.1090691]
[1763525849751,0.1090979,91729.0,91728.0,0.0135]
[1763525849949,0.40245271,91729.0,91728.0,0.0135]
[1763525850156,1.12405271,91729.0,91728.0,0.0135]
[1763525850343,0.75135481,91729.0,91728.0,0.05798]
[1763525850541,0.75135481,91729.0,91728.0,0.1080834]
[1763525850745,1.01365615,91729.0,91728.0,0.1080834]
[1763525850945,0.72072426,91729.0,91728.0,0.1080834]
[1763525851351,0.00016347,91738.0,91728.0,0.1080834]
[1763525851352,0.00016347,91738.0,91737.0,0.04448]
[1763525851552,0.00016347,91738.0,91737.0,0.2036718]
[1763525851945,0.03336116,91738.0,91737.0,0.2036718]
[1763525852351,0.02395987,91738.0,91737.0,0.6036718]
[1763525852655,0.03842101,91750.0,91749.0,0.04448]
[1763525852951,0.04889803,91750.0,91749.0,0.04448]
[1763525853144,0.06275803,91750.0,91749.0,0.0728534]
[1763525853957,0.01386,91740.0,91726.0,0.10937345]
[1763525854146,0.1557872,91738.0,91737.0,0.02275]
[1763525854343,0.0467,91727.0,91726.0,0.02302255]
[1763525854546,0.38512,91727.0,91726.0,0.04475255]
[1763525855355,0.4085,91727.0,91726.0,0.04475255]
[1763525856142,0.49508175,91727.0,91726.0,0.04475255]
[1763525856346,0.3618,91727.0,91726.0,0.04475255]
[1763525856554,0.001,91727.0,91726.0,0.04475255]
[1763525856952,0.003,91727.0,91726.0,0.04475255]
[1763525857445,0.001,91727.0,91726.0,0.04475255]
[1763525857650,0.002,91727.0,91726.0,0.04475255]
[1763525857846,0.003,91727.0,91726.0,0.04475255]
[1763525858252,0.0497,91727.0,91726.0,0.04475255]
[1763525858449,0.448152,91727.0,91726.0,0.04475255]
[1763525858652,0.449152,91727.0,91726.0,0.02302255]
[1763525858852,0.4105,91727.0,91726.0,0.00027255]
[1763525859054,0.06056,91718.0,91717.0,0.02291347]
[1763525859359,0.06056,91718.0,91717.0,0.04464347]
[1763525859955,0.0467,91718.0,91717.0,0.04464347]
[1763525860155,0.00219803,91720.0,91719.0,0.04448]
[1763525861155,0.03860843,91729.0,91728.0,0.04448]
[1763525861343,0.03860843,91732.0,91731.0,0.04448]
[1763525861656,0.00016347,91736.0,91734.0,0.1535719]
[1763525861657,0.03860843,91735.0,91734.0,0.1535719]
[1763525861856,0.0387719,91736.0,91734.0,0.1535719]
[1763525862059,0.00016347,91736.0,91735.0,0.04448]
[1763525864355,0.03035964,91736.0,91735.0,0.04448]
[1763525864759,0.03335964,91736.0,91735.0,0.04448]
[1763525865147,0.3608,91748.0,91741.0,0.1090836]
[1763525865448,0.0467,91744.0,91743.0,0.4698812]
[1763525867359,0.0487,91744.0,91743.0,0.4698812]
[1763525868667,0.02732,91744.0,91743.0,0.4698812]
[1763525870247,0.003,91744.0,91743.0,0.4698812]
[1763525870755,0.0467,91739.0,91738.0,0.109087]
[1763525871458,0.01605803,91740.0,91738.0,0.109087]
[1763525871853,0.001,91739.0,91738.0,0.109087]
[1763525872451,0.01605803,91740.0,91738.0,0.109087]
[1763525872452,0.04037803,91740.0,91738.0,0.109087]
[1763525872652,0.001,91740.0,91738.0,0.109087]
[1763525872846,0.03960843,91740.0,91738.0,0.109087]
[1763525873058,0.002,91739.0,91738.0,0.109087]
[1763525873453,0.04180646,91740.0,91738.0,0.109087]
[1763525873654,0.05189803,91740.0,91738.0,0.109087]
[1763525873854,0.0467,91739.0,91738.0,0.109087]
[1763525874259,0.0487,91739.0,91738.0,0.109087]
[1763525874566,0.06056,91737.0,91736.0,0.3608]
[1763525875652,0.01386,91737.0,91736.0,0.3608]
[1763525875853,0.05893189,91739.0,91737.0,0.1090884]
[1763525876162,0.08225189,91739.0,91737.0,0.1090884]
[1763525876365,0.05793189,91739.0,91737.0,0.1090884]
[1763525876662,0.06012992,91740.0,91737.0,0.1090884]
[1763525876857,0.00219803,91740.0,91737.0,0.1090884]
[1763525877062,0.03052233,91739.0,91737.0,0.1090884]
[1763525877264,0.02852233,91738.0,91737.0,0.1090884]
[1763525877563,0.02852233,91738.0,91737.0,0.1603084]
[1763525878166,0.003,91739.0,91738.0,0.05122]
[1763525878461,0.03047006,91739.0,91738.0,0.05122]
[1763525879155,0.02947006,91739.0,91738.0,0.05122]
[1763525879354,0.03047006,91739.0,91738.0,0.05122]
[1763525881163,0.08649006,91739.0,91738.0,0.05122]
[1763525882264,0.05602,91735.0,91734.0,0.02917347]
[1763525882458,0.08449006,91735.0,91734.0,0.00016347]
[1763525882866,0.05602,91735.0,91734.0,0.00016347]
[1763525883070,0.05602,91723.0,91722.0,0.26376]
[1763525883456,0.05602,91723.0,91722.0,0.31498]
[1763525884454,0.01368,91728.0,91727.0,0.1091003]
[1763525884656,0.07189803,91730.0,91729.0,0.05122]
[1763525885761,0.05602,91728.0,91727.0,0.1381103]
[1763525886067,0.05602,91728.0,91727.0,0.02901]
[1763525886268,0.01587803,91730.0,91722.0,0.26376]
[1763525886269,0.05602,91723.0,91722.0,0.26376]
[1763525886572,0.05602,91714.0,91713.0,0.00016347]
[1763525887358,0.05602,91714.0,91713.0,0.02917347]
[1763525887565,0.05602,91714.0,91713.0,0.05138347]
[1763525888264,0.3608,91724.0,91723.0,0.160325]
[1763525888661,0.39323,91724.0,91723.0,0.160325]
[1763525888865,0.41682,91724.0,91723.0,0.160325]
[1763525889368,0.41682,91724.0,91723.0,0.02901]
[1763525889575,0.05602,91714.0,91713.0,0.00016347]
[1763525889770,0.05602,91714.0,91713.0,0.02917347]
[1763525890361,0.05602,91714.0,91713.0,0.05138347]
[1763525891365,0.05602,91714.0,91713.0,0.00016347]
[1763525892271,0.05602,91714.0,91713.0,0.10928037]
[1763525893067,0.05702,91714.0,91713.0,0.10928037]
[1763525893662,0.41782,91714.0,91713.0,0.00016347]
[1763525894070,0.5269357,91714.0,91713.0,0.00016347]
[1763525894265,0.05602,91707.0,91706.0,0.1091248]
[1763525895768,0.05602,91707.0,91706.0,0.1603448]
[1763525897074,0.01587803,91710.0,91706.0,0.1603448]
[1763525897075,0.00219803,91710.0,91709.0,0.05122]
[1763525897266,0.3608,91724.0,91709.0,0.05122]
[1763525897267,0.41682,91724.0,91723.0,0.160325]
[1763525897874,0.41682,91724.0,91723.0,0.02901]
[1763525898175,0.41682,91724.0,91723.0,0.05122]
[1763525898766,0.41782,91724.0,91723.0,0.05122]
[1763525898972,0.04611,91719.0,91718.0,0.02901]
[1763525899161,0.0697,91719.0,91718.0,0.02901]
[1763525899666,0.0697,91719.0,91718.0,0.05122]
[1763525900476,0.0707,91719.0,91718.0,0.05122]
[1763525900772,0.001,91719.0,91718.0,0.05122]
[1763525900972,0.3608,91743.0,91731.0,0.05122]
[1763525901173,0.05618347,91732.0,91731.0,0.31498]
[1763525901369,0.00219803,91730.0,91724.0,0.26376]
[1763525901577,0.05602,91723.0,91722.0,0.00016356]
[1763525903480,0.05702,91723.0,91722.0,0.00016356]
[1763525904374,0.05802,91723.0,91722.0,0.00016356]
[1763525904770,0.05902,91723.0,91722.0,0.00016356]
[1763525905267,0.079,91710.0,91709.0,0.1091211]
[1763525905470,0.08119803,91710.0,91709.0,0.1091211]
[1763525906382,0.08219803,91710.0,91709.0,0.1091211]
[1763525907480,0.08319803,91710.0,91709.0,0.1494311]
[1763525907782,0.002,91710.0,91709.0,0.1494311]
[1763525908080,0.3608,91735.0,91731.0,0.1478555]
[1763525908280,0.3608,91735.0,91722.0,0.26388356]
[1763525908281,0.05931,91723.0,91722.0,0.26388356]
[1763525908479,0.05931,91723.0,91722.0,0.30264356]
[1763525908983,0.05931,91723.0,91722.0,0.03892356]
[1763525909784,0.06031,91723.0,91722.0,0.03892356]
[1763525910484,0.05931,91723.0,91722.0,0.03892356]
[1763525910673,0.06131,91723.0,91722.0,0.01954356]
[1763525911278,0.06031,91723.0,91722.0,0.00016356]
[1763525911481,0.06131,91723.0,91722.0,0.10926976]
[1763525911682,0.06131,91723.0,91722.0,0.00016356]
[1763525911885,0.06131,91723.0,91708.0,0.3608]
[1763525911886,0.05931,91709.0,91708.0,0.3608]
[1763525912180,0.05931,91709.0,91708.0,0.38034]
[1763525912682,0.05931,91709.0,91708.0,0.3608]
[1763525914286,0.05931,91709.0,91708.0,0.38034]
[1763525914681,0.02030803,91710.0,91709.0,0.1091216]
[1763525914882,0.01811,91710.0,91709.0,0.1482016]
[1763525915078,0.04756,91710.0,91709.0,0.1482016]
[1763525915276,0.42011,91716.0,91715.0,0.1481945]
[1763525915972,0.05931,91709.0,91708.0,0.38034]
[1763525916175,0.05931,91709.0,91708.0,0.3608]
[1763525916582,0.05931,91709.0,91708.0,0.39988]
[1763525917691,0.05931,91703.0,91699.0,0.08318935]
[1763525917882,0.02945,91688.0,91687.0,0.07846881]
[1763525918185,0.02945,91688.0,91672.0,0.26372]
[1763525918186,0.05931,91687.0,91668.0,0.26372]
[1763525918380,0.05931,91687.0,91686.0,0.00889091]
[1763525918579,0.05931,91682.0,91669.0,0.06432]
[1763525918887,0.42011,91682.0,91669.0,0.06432]
[1763525919483,0.42011,91682.0,91669.0,0.1734885]
[1763525919990,0.3608,91682.0,91681.0,0.05620918]